fUST/lending_fUST_20250210
["ID","MTS","AMOUNT","RATE_DAILY","PERIOD"]
[352519728,1739147456609,-500.0,0.00012602,2]
[352519729,1739147456618,-500.0,0.00012602,2]
[352519730,1739147456627,-1203.55,0.00012602,2]
[352519731,1739147456637,-500.0,0.00012602,2]
[352519732,1739147456648,-500.0,0.00012602,2]
[352519733,1739147456659,-516.12,0.00012602,2]
[352519734,1739147456668,-500.0,0.00012602,2]
[352519735,1739147456678,-864.65,0.00012602,2]
[352519736,1739147456687,-151.0,0.000127,2]
[352519737,1739147456696,-500.0,0.00012739,2]
[352519738,1739147456705,-212.01,0.00012739,2]
[352519739,1739147456716,-500.0,0.00012739,2]
[352519740,1739147456725,-620.84975041,0.00012739,2]
[352519741,1739147456735,-506.3,0.00012739,2]
[352519742,1739147456744,-635.75,0.00012739,2]
[352519743,1739147456753,-3138.03,0.00012739,2]
[352519744,1739147456763,-1269.34,0.00012739,2]
[352519745,1739147456772,-2469.14,0.00012739,2]
[352519746,1739147456782,-666.74,0.00012739,2]
[352519747,1739147456791,-1367.03,0.00012739,2]
[352519748,1739147456800,-500.0,0.00012739,2]
[352519749,1739147456810,-638.23663002,0.00012739,2]
[352519750,1739147456820,-500.0,0.00012739,2]
[352519751,1739147456829,-7452.64,0.00012739,2]
[352519752,1739147456839,-500.0,0.00012739,2]
[352519753,1739147456848,-500.0,0.00012739,2]
[352519754,1739147456857,-590.42,0.00012739,2]
[352519755,1739147456867,-500.0,0.00012739,2]
[352519756,1739147456877,-500.0,0.00012739,2]
[352519757,1739147456886,-500.0,0.00012739,2]
[352519758,1739147456895,-168.55239561,0.00012739,2]
[352519759,1739147456905,-3673.82,0.00012739,2]
[352519760,1739147456919,-620.46,0.00012739,2]
[352519761,1739147456929,-500.0,0.00012739,2]
[352519762,1739147456938,-679.58,0.00012739,2]
[352519763,1739147456947,-637.44126301,0.00012739,2]
[352519764,1739147456958,-500.0,0.00012739,2]
[352519765,1739147456967,-500.0,0.00012739,2]
[352519766,1739147456977,-1203.55,0.00012739,2]
[352519767,1739147456986,-500.0,0.00012739,2]
[352519768,1739147456995,-500.0,0.00012739,2]
[352519769,1739147457005,-516.12,0.00012739,2]
[352519770,1739147457087,-203.12710013,0.00012739,2]
[352519771,1739147457097,-864.65,0.00012739,2]
[352519772,1739147457106,-500.0,0.00012876,2]
[352519773,1739147457116,-500.0,0.00012876,2]
[352519774,1739147457124,-506.3,0.00012876,2]
[352519775,1739147457133,-635.75,0.00012876,2]
[352519776,1739147457143,-3138.03,0.00012876,2]
[352519777,1739147457153,-1269.34,0.00012876,2]
[352519778,1739147457164,-2469.14,0.00012876,2]
[352519779,1739147457174,-666.74,0.00012876,2]
[352519780,1739147457183,-1367.03,0.00012876,2]
[352519781,1739147457192,-500.0,0.00012876,2]
[352519782,1739147457203,-500.0,0.00012876,2]
[352519783,1739147457212,-7452.64,0.00012876,2]
[352519784,1739147457222,-500.0,0.00012876,2]
[352519785,1739147457231,-500.0,0.00012876,2]
[352519786,1739147457241,-590.42,0.00012876,2]
[352519787,1739147457250,-500.0,0.00012876,2]
[352519788,1739147457259,-500.0,0.00012876,2]
[352519789,1739147457269,-500.0,0.00012876,2]
[352519790,1739147457279,-3673.82,0.00012876,2]
[352519791,1739147457289,-620.46,0.00012876,2]
[352519792,1739147457298,-500.0,0.00012876,2]
[352519793,1739147457308,-679.58,0.00012876,2]
[352519794,1739147457317,-500.0,0.00012876,2]
[352519795,1739147457326,-205.6536781,0.00012876,2]
[352519796,1739147457335,-1203.55,0.00012876,2]
[352519797,1739147457345,-500.0,0.00012876,2]
[352519798,1739147457354,-500.0,0.00012876,2]
[352519799,1739147457363,-516.12,0.00012876,2]
[352519800,1739147457373,-864.65,0.00012876,2]
[352519801,1739147457382,-151.0,0.000129,2]
[352519802,1739147457391,-2068.9947594,0.000129,2]
[352519803,1739147457400,-2068.9947594,0.000129,2]
[352519804,1739147457412,-2068.9947594,0.000129,2]
[352519805,1739147457421,-7438.69753278,0.00013,2]
[352519806,1739147457430,-500.0,0.00013013,2]
[352519807,1739147457440,-506.3,0.00013013,2]
[352519808,1739147457448,-635.75,0.00013013,2]
[352519809,1739147457458,-3138.03,0.00013013,2]
[352519810,1739147457467,-1269.34,0.00013013,2]
[352519811,1739147457477,-2469.14,0.00013013,2]
[352519812,1739147457487,-666.74,0.00013013,2]
[352519813,1739147457497,-1367.03,0.00013013,2]
[352519814,1739147457507,-500.0,0.00013013,2]
[352519815,1739147457517,-379.31913495,0.00013013,2]
[352519816,1739147457527,-7452.64,0.00013013,2]
[352519817,1739147457537,-500.0,0.00013013,2]
[352519818,1739147457547,-319.87321266,0.00013013,2]
[352519819,1739147457556,-590.42,0.00013013,2]
[352519820,1739147457565,-500.0,0.00013013,2]
[352519821,1739147457575,-500.0,0.00013013,2]
[352519822,1739147457585,-500.0,0.00013013,2]
[352519823,1739147457594,-3673.82,0.00013013,2]
[352519824,1739147457604,-620.46,0.00013013,2]
[352519825,1739147457613,-500.0,0.00013013,2]
[352519826,1739147457623,-679.58,0.00013013,2]
[352519827,1739147457633,-500.0,0.00013013,2]
[352519828,1739147457643,-1203.55,0.00013013,2]
[352519829,1739147457656,-500.0,0.00013013,2]
[352519830,1739147457669,-500.0,0.00013013,2]
[352519831,1739147457679,-516.12,0.00013013,2]
[352519832,1739147457691,-864.65,0.00013013,2]
[352519833,1739147457701,-500.0,0.0001315,2]
[352519834,1739147457710,-506.3,0.0001315,2]
[352519835,1739147457720,-635.75,0.0001315,2]
[352519836,1739147457732,-3138.03,0.0001315,2]
[352519837,1739147457742,-1269.34,0.0001315,2]
[352519838,1739147457751,-2469.14,0.0001315,2]
[352519839,1739147457761,-666.74,0.0001315,2]
[352519840,1739147457771,-1367.03,0.0001315,2]
[352519841,1739147457780,-500.0,0.0001315,2]
[352519842,1739147457790,-7452.64,0.0001315,2]
[352519843,1739147457800,-500.0,0.0001315,2]
[352519844,1739147457809,-590.42,0.0001315,2]
[352519845,1739147457819,-500.0,0.0001315,2]
[352519846,1739147457829,-500.0,0.0001315,2]
[352519847,1739147457839,-500.0,0.0001315,2]
[352519848,1739147457848,-3673.82,0.0001315,2]
[352519849,1739147457858,-620.46,0.0001315,2]
[352519850,1739147457868,-500.0,0.0001315,2]
[352519851,1739147457878,-679.58,0.0001315,2]
[352519852,1739147457888,-500.0,0.0001315,2]
[352519853,1739147457898,-1203.55,0.0001315,2]
[352519854,1739147457908,-500.0,0.0001315,2]
[352519855,1739147457918,-500.0,0.0001315,2]
[352519856,1739147457928,-516.12,0.0001315,2]
[352519857,1739147457937,-864.65,0.0001315,2]
[352519858,1739147457946,-151.0,0.000132,2]
[352519859,1739147457956,-587.0,0.00013231,2]
[352519860,1739147457965,-500.0,0.00013287,2]
[352519861,1739147457975,-506.3,0.00013287,2]
[352519862,1739147457984,-635.75,0.00013287,2]
[352519863,1739147457994,-3138.03,0.00013287,2]
[352519864,1739147458004,-1269.34,0.00013287,2]
[352519865,1739147458014,-2469.14,0.00013287,2]
[352519866,1739147458023,-666.74,0.00013287,2]
[352519867,1739147458033,-1367.03,0.00013287,2]
[352519868,1739147458043,-500.0,0.00013287,2]
[352519869,1739147458053,-7452.64,0.00013287,2]
[352519870,1739147458062,-500.0,0.00013287,2]
[352519871,1739147458071,-590.42,0.00013287,2]
[352519872,1739147458081,-618.11526845,0.00013287,2]
[352519873,1739147458090,-540.00260018,0.00013287,2]
[352519874,1739147458100,-500.0,0.00013287,2]
[352519875,1739147458110,-3673.82,0.00013287,2]
[352519876,1739147458120,-620.46,0.00013287,2]
[352519877,1739147458130,-284.50519767,0.00013287,2]
[352519878,1739147458139,-679.58,0.00013287,2]
[352519879,1739147458149,-495.70362304,0.00013287,2]
[352519880,1739147458160,-1203.55,0.00013287,2]
[352519881,1739147458170,-500.0,0.00013287,2]
[352519882,1739147458179,-516.12,0.00013287,2]
[352519883,1739147458189,-864.65,0.00013287,2]
[352519884,1739147458198,-218.53313337,0.00013324,2]
[352519885,1739147458208,-498.5283615,0.00013343,2]
[352519886,1739147458217,-151.0,0.00013368,2]
[352519887,1739147458226,-1500.0,0.00013372,2]
[352519888,1739147458236,-500.0,0.00013424,2]
[352519889,1739147458245,-506.3,0.00013424,2]
[352519890,1739147458254,-635.75,0.00013424,2]
[352519891,1739147458264,-3138.03,0.00013424,2]
[352519892,1739147458274,-1269.34,0.00013424,2]
[352519893,1739147458283,-2469.14,0.00013424,2]
[352519894,1739147458293,-666.74,0.00013424,2]
[352519895,1739147458303,-1367.03,0.00013424,2]
[352519896,1739147458312,-500.0,0.00013424,2]
[352519897,1739147458321,-7452.64,0.00013424,2]
[352519898,1739147458332,-500.0,0.00013424,2]
[352519899,1739147458342,-590.42,0.00013424,2]
[352519900,1739147458352,-500.0,0.00013424,2]
[352519901,1739147458362,-3673.82,0.00013424,2]
[352519902,1739147458371,-620.46,0.00013424,2]
[352519903,1739147458381,-679.58,0.00013424,2]
[352519904,1739147458393,-1203.55,0.00013424,2]
[352519905,1739147458403,-500.0,0.00013424,2]
[352519906,1739147458414,-516.12,0.00013424,2]
[352519907,1739147458423,-864.65,0.00013424,2]
[352519908,1739147458433,-2068.9947594,0.00013525,2]
[352519909,1739147458442,-500.0,0.00013561,2]
[352519910,1739147458452,-506.3,0.00013561,2]
[352519911,1739147458462,-635.75,0.00013561,2]
[352519912,1739147458471,-3138.03,0.00013561,2]
[352519913,1739147458481,-1269.34,0.00013561,2]
[352519914,1739147458491,-2469.14,0.00013561,2]
[352519915,1739147458501,-666.74,0.00013561,2]
[352519916,1739147458511,-1367.03,0.00013561,2]
[352519917,1739147458522,-500.0,0.00013561,2]
[352519918,1739147458537,-7452.64,0.00013561,2]
[352519919,1739147458547,-500.0,0.00013561,2]
[352519920,1739147458556,-590.42,0.00013561,2]
[352519921,1739147458566,-313.49658723,0.00013561,2]
[352519922,1739147458784,-186.50341277,0.00013561,2]
[352519923,1739147458794,-3673.82,0.00013561,2]
[352519924,1739147458803,-620.46,0.00013561,2]
[352519925,1739147458814,-679.58,0.00013561,2]
[352519926,1739147458824,-1203.55,0.00013561,2]
[352519927,1739147458833,-500.0,0.00013561,2]
[352519928,1739147458843,-516.12,0.00013561,2]
[352519929,1739147458852,-864.65,0.00013561,2]
[352519930,1739147458862,-900.0,0.00013659,2]
[352519931,1739147458871,-500.0,0.00013698,2]
[352519932,1739147458880,-506.3,0.00013698,2]
[352519933,1739147458889,-635.75,0.00013698,2]
[352519934,1739147458898,-3138.03,0.00013698,2]
[352519935,1739147458908,-1269.34,0.00013698,2]
[352519936,1739147458918,-2469.14,0.00013698,2]
[352519937,1739147458928,-666.74,0.00013698,2]
[352519938,1739147458937,-1367.03,0.00013698,2]
[352519939,1739147458947,-500.0,0.00013698,2]
[352519940,1739147458956,-7452.64,0.00013698,2]
[352519941,1739147458965,-500.0,0.00013698,2]
[352519942,1739147458974,-590.42,0.00013698,2]
[352519943,1739147458983,-500.0,0.00013698,2]
[352519944,1739147458993,-3673.82,0.00013698,2]
[352519945,1739147459002,-620.46,0.00013698,2]
[352519946,1739147459011,-679.58,0.00013698,2]
[352519947,1739147459021,-1203.55,0.00013698,2]
[352519948,1739147459031,-500.0,0.00013698,2]
[352519949,1739147459041,-516.12,0.00013698,2]
[352519950,1739147459050,-864.65,0.00013698,2]
[352519951,1739147459059,-1098.93876,0.00013699,2]
[352519952,1739147459070,-2802.6098397,0.00013699,2]
[352519953,1739147459082,-2559.875172,0.00013699,2]
[352519954,1739147459091,-205.6991775,0.00013699,2]
[352519955,1739147459101,-500.0,0.00013699,2]
[352519956,1739147459112,-500.0,0.00013699,2]
[352519957,1739147459121,-500.0,0.00013699,2]
[352519958,1739147459131,-500.0,0.00013699,2]
[352519959,1739147459140,-500.0,0.00013699,2]
[352519960,1739147459149,-500.0,0.00013699,2]
[352519961,1739147459160,-500.0,0.00013699,2]
[352519962,1739147459169,-500.0,0.00013699,2]
[352519963,1739147459178,-500.0,0.00013699,2]
[352519964,1739147459187,-500.0,0.00013699,2]
[352519965,1739147459197,-500.0,0.00013699,2]
[352519966,1739147459206,-500.0,0.00013699,2]
[352519967,1739147459215,-500.0,0.00013699,2]
[352519968,1739147459226,-500.0,0.00013699,2]
[352519969,1739147459235,-500.0,0.00013699,2]
[352519970,1739147459244,-500.0,0.00013699,2]
[352519971,1739147459253,-500.0,0.00013699,2]
[352519972,1739147459263,-500.0,0.00013699,2]
[352519973,1739147459272,-500.0,0.00013699,2]
[352519974,1739147459281,-500.0,0.00013699,2]
[352519975,1739147459291,-500.0,0.00013699,2]
[352519976,1739147459300,-500.0,0.00013699,2]
[352519977,1739147459309,-644.18005029,0.00013699,2]
[352519978,1739147459319,-500.0,0.00013699,2]
[352519979,1739147459328,-500.0,0.00013699,2]
[352519980,1739147459337,-500.0,0.00013699,2]
[352519981,1739147459346,-500.0,0.00013699,2]
[352519982,1739147459355,-500.0,0.00013699,2]
[352519983,1739147459365,-500.0,0.00013699,2]
[352519984,1739147459374,-500.0,0.00013699,2]
[352519985,1739147459383,-500.0,0.00013699,2]
[352519986,1739147459392,-500.0,0.00013699,2]
[352519987,1739147459402,-500.0,0.00013699,2]
[352519988,1739147459413,-500.0,0.00013699,2]
[352519989,1739147459422,-500.0,0.00013699,2]
[352519990,1739147459432,-500.0,0.00013699,2]
[352519991,1739147459442,-500.0,0.00013699,2]
[352519992,1739147459451,-500.0,0.00013699,2]
[352519993,1739147459462,-500.0,0.00013699,2]
[352519994,1739147459471,-500.0,0.00013699,2]
[352519995,1739147459481,-500.0,0.00013699,2]
[352519996,1739147459490,-500.0,0.00013699,2]
[352519997,1739147459499,-485.76264301,0.00013699,2]
[352519998,1739147459508,-500.0,0.00013699,2]
[352519999,1739147459517,-500.0,0.00013699,2]
[352520000,1739147459526,-500.0,0.00013699,2]
[352520001,1739147459536,-500.0,0.00013699,2]
[352520002,1739147459545,-500.0,0.00013699,2]
[352520003,1739147459554,-500.0,0.00013699,2]
[352520004,1739147459563,-500.0,0.00013699,2]
[352520005,1739147459571,-500.0,0.00013699,2]
[352520006,1739147459580,-500.0,0.00013699,2]
[352520007,1739147459590,-500.0,0.00013699,2]
[352520008,1739147459599,-500.0,0.00013699,2]
[352520009,1739147459608,-500.0,0.00013699,2]
[352520010,1739147459617,-500.0,0.00013699,2]
[352520011,1739147459627,-500.0,0.00013699,2]
[352520012,1739147459637,-500.0,0.00013699,2]
[352520013,1739147459650,-500.0,0.00013699,2]
[352520014,1739147459660,-500.0,0.00013699,2]
[352520015,1739147459670,-500.0,0.00013699,2]
[352520016,1739147459679,-500.0,0.00013699,2]
[352520017,1739147459689,-500.0,0.00013699,2]
[352520018,1739147459703,-500.0,0.00013699,2]
[352520019,1739147459714,-500.0,0.00013699,2]
[352520020,1739147459726,-500.0,0.00013699,2]
[352520021,1739147459737,-250.0,0.00013699,2]
[352520022,1739147459747,-838.75016143,0.00013699,2]
[352520023,1739147459757,-838.75016143,0.00013699,2]
[352520024,1739147459766,-838.75016143,0.00013699,2]
[352520025,1739147459784,-838.75016143,0.00013699,2]
[352520026,1739147459794,-838.75016143,0.00013699,2]
[352520027,1739147459803,-838.75016143,0.00013699,2]
[352520028,1739147459813,-838.75016143,0.00013699,2]
[352520029,1739147459823,-838.75016143,0.00013699,2]
[352520030,1739147459832,-838.75016143,0.00013699,2]
[352520031,1739147459842,-838.75016143,0.00013699,2]
[352520032,1739147459851,-838.75016143,0.00013699,2]
[352520033,1739147459861,-838.75016143,0.00013699,2]
[352520034,1739147459871,-838.75016143,0.00013699,2]
[352520035,1739147459880,-838.75016143,0.00013699,2]
[352520036,1739147459890,-838.75016143,0.00013699,2]
[352520037,1739147459899,-838.75016143,0.00013699,2]
[352520038,1739147459910,-838.75016143,0.00013699,2]
[352520039,1739147460000,-838.75016143,0.00013699,2]
[352520040,1739147460015,-838.75016143,0.00013699,2]
[352520041,1739147460026,-838.75016143,0.00013699,2]
[352520042,1739147460036,-838.75016143,0.00013699,2]
[352520043,1739147460045,-838.75016143,0.00013699,2]
[352520044,1739147460056,-838.75016143,0.00013699,2]
[352520045,1739147460066,-838.75016143,0.00013699,2]
[352520046,1739147460076,-838.75016143,0.00013699,2]
[352520047,1739147460085,-838.75016143,0.00013699,2]
[352520048,1739147460096,-500.0,0.00013699,2]
[352520049,1739147460106,-213.04506707,0.00013699,2]
[352520050,1739147460116,-165.24734546,0.000137,2]
[352520051,1739147460127,-165.24734546,0.000137,2]
[352520052,1739147460138,-165.24,0.000137,2]
[352520053,1739147460148,-165.24734546,0.000137,2]
[352520054,1739147460158,-165.24734546,0.000137,2]
[352520055,1739147460171,-165.24734546,0.000137,2]
[352520056,1739147460183,-165.24734546,0.000137,2]
[352520057,1739147460193,-165.24734546,0.000137,2]
[352520058,1739147460204,-165.24734546,0.000137,2]
[352520059,1739147460216,-165.24,0.000137,2]
[352520060,1739147460227,-218.53313334,0.00013741,2]
[352520061,1739147460237,-500.0,0.00013835,2]
[352520062,1739147460250,-506.3,0.00013835,2]
[352520063,1739147460261,-635.75,0.00013835,2]
[352520064,1739147460271,-3138.03,0.00013835,2]
[352520065,1739147460281,-1269.34,0.00013835,2]
[352520066,1739147460291,-2469.14,0.00013835,2]
[352520067,1739147460301,-666.74,0.00013835,2]
[352520068,1739147460311,-1367.03,0.00013835,2]
[352520069,1739147460322,-450.63863078,0.00013835,2]
[352520070,1739147460332,-7452.64,0.00013835,2]
[352520071,1739147460343,-500.0,0.00013835,2]
[352520072,1739147460353,-590.42,0.00013835,2]
[352520073,1739147460363,-500.0,0.00013835,2]
[352520074,1739147460374,-3673.82,0.00013835,2]
[352520075,1739147460386,-620.46,0.00013835,2]
[352520076,1739147460396,-679.58,0.00013835,2]
[352520077,1739147460406,-1203.55,0.00013835,2]
[352520078,1739147460418,-500.0,0.00013835,2]
[352520079,1739147460427,-516.12,0.00013835,2]
[352520080,1739147460438,-864.65,0.00013835,2]
[352520081,1739147460448,-3556.66,0.00013862,2]
[352520082,1739147460457,-396.0,0.0001394,2]
[352520083,1739147460467,-588.41718841,0.00013972,2]
[352520084,1739147460476,-506.3,0.00013972,2]
[352520085,1739147460487,-635.75,0.00013972,2]
[352520086,1739147460497,-3138.03,0.00013972,2]
[352520087,1739147460508,-1269.34,0.00013972,2]
[352520088,1739147460519,-2469.14,0.00013972,2]
[352520089,1739147460530,-666.74,0.00013972,2]
[352520090,1739147460540,-1367.03,0.00013972,2]
[352520091,1739147460550,-7452.64,0.00013972,2]
[352520092,1739147460561,-277.57478696,0.00013972,2]
[352520093,1739147460570,-590.42,0.00013972,2]
[352520094,1739147460581,-500.0,0.00013972,2]
[352520095,1739147460591,-3673.82,0.00013972,2]
[352520096,1739147460601,-620.46,0.00013972,2]
[352520097,1739147460611,-679.58,0.00013972,2]
[352520098,1739147460621,-1203.55,0.00013972,2]
[352520099,1739147460631,-264.46288228,0.00013972,2]
[352520100,1739147460641,-516.12,0.00013972,2]
[352520101,1739147460657,-864.65,0.00013972,2]
[352520102,1739147460669,-406.15355597,0.0001399,2]
[352520103,1739147460679,-452.0,0.00014,4]
[352520104,1739147460688,-3270.76,0.00014,2]
[352520105,1739147460698,-473.487,0.00014077,2]
[352520106,1739147460707,-506.35145813,0.00014109,2]
[352520107,1739147460717,-635.83419009,0.00014109,2]
[352520108,1739147460727,-3138.24,0.00014109,2]
[352520109,1739147460738,-1269.57,0.00014109,2]
[352520110,1739147460747,-2469.23123898,0.00014109,2]
[352520111,1739147460757,-666.81859601,0.00014109,2]
[352520112,1739147460767,-1367.24,0.00014109,2]
[352520113,1739147460779,-7452.7381,0.00014109,2]
[352520114,1739147460789,-590.44128124,0.00014109,2]
[352520115,1739147460798,-235.25517285,0.00014109,2]
[352520116,1739147460809,-3674.0588652,0.00014109,2]
[352520117,1739147460819,-620.61,0.00014109,2]
[352520118,1739147460831,-679.69750337,0.00014109,2]
[352520119,1739147460840,-1203.66619201,0.00014109,2]
[352520120,1739147460849,-516.12331791,0.00014109,2]
[352520121,1739147460859,-864.75306051,0.00014109,2]
[352520122,1739147460868,-218.53313334,0.00014158,2]
[352520123,1739147460878,-151.0,0.000142,2]
[352520124,1739147460887,-2500.0,0.00014246,2]
[352520125,1739147460897,-1000.0,0.00014247,2]
[352520126,1739147460907,-2068.9947594,0.00014413,2]
[352520127,1739147460919,-7135.0,0.000145,2]
[352520128,1739147460928,-455.0,0.0001454,2]
[352520129,1739147460938,-218.53313334,0.00014574,2]
[352520130,1739147460947,-500.0,0.00014669,2]
[352520131,1739147460957,-151.0,0.000148,2]
[352520132,1739147460966,-218.53313334,0.00014991,2]
[352520133,1739147460975,-334787.63603135,0.00015,30]
[352520134,1739147460985,-151.0,0.00015,2]
[352520135,1739147460994,-151.0,0.00015,2]
[352520136,1739147461004,-900.0,0.00015029,2]
[352520137,1739147461013,-166.0,0.00015068,2]
[352520138,1739147461022,-1500.0,0.00015248,2]
[352520139,1739147461032,-2068.9947594,0.00015302,2]
[352520140,1739147461042,-151.0,0.000154,2]
[352520141,1739147461051,-218.53313334,0.00015408,2]
[352520142,1739147461060,-452.0,0.000155,5]
[352520143,1739147461076,-646.598,0.00015751,2]
[352520144,1739147461085,-218.53313334,0.00015825,2]
[352520145,1739147461094,-151.0,0.00016,2]
[352520146,1739147461104,-781.57,0.00016164,2]
[352520147,1739147461114,-2068.9947594,0.00016191,2]
[352520148,1739147461124,-218.53313334,0.00016241,2]
[352520149,1739147461133,-900.0,0.00016399,2]
[352520150,1739147461143,-154.5151656,0.00016411,2]
[352520151,1739147461154,-153.0,0.00016411,2]
[352520152,1739147461165,-426.4090738,0.00016411,2]
[352520153,1739147461174,-306.0,0.00016411,2]
[352520154,1739147461184,-500.0,0.00016438,2]
[352520155,1739147461193,-403.44338513,0.00016438,2]
[352520156,1739147461203,-500.0,0.00016438,2]
[352520157,1739147461213,-600.0,0.00016532,2]
[352520158,1739147461223,-502.1940432,0.00016546,2]
[352520159,1739147461233,-151.0,0.000166,2]
[352520160,1739147461243,-303.0,0.0001665,2]
[352520161,1739147461253,-218.53313334,0.00016658,2]
[352520162,1739147461262,-272.72621062,0.0001671,2]
[352520163,1739147461272,-22605.86033991,0.00016896,2]
[352520164,1739147461282,-396.0,0.0001694,2]
[352520165,1739147461292,-209.38894519,0.0001698,2]
[352520166,1739147461307,-13057.1404294,0.0001698,2]
[352520167,1739147461382,-500.0,0.00016986,3]
[352520168,1739147461392,-2000.0,0.00017,2]
[352520169,1739147461402,-452.0,0.00017,6]
[352520170,1739147461414,-150.0,0.00017,2]
[352520171,1739147461424,-7640.96108502,0.00017,2]
[352520172,1739147461433,-199.0989539,0.00017048,2]
[352520173,1739147461443,-150.18,0.00017059,2]
[352520174,1739147461452,-201.60806471,0.00017059,2]
[352520175,1739147461462,-266.03754597,0.00017059,2]
[352520176,1739147461472,-500.0,0.00017059,2]
[352520177,1739147461483,-500.0,0.00017059,2]
[352520178,1739147461493,-150.18,0.00017059,2]
[352520179,1739147461502,-250.81111404,0.00017059,2]
[352520180,1739147461512,-218.53313334,0.00017075,2]
[352520181,1739147461522,-2068.9947594,0.0001708,2]
[352520182,1739147461534,-500.0,0.00017094,2]
[352520183,1739147461544,-500.0,0.00017106,2]
[352520184,1739147461554,-1098.93876,0.00017123,2]
[352520185,1739147461564,-151.0,0.00017167,2]
[352520186,1739147461575,-151.132139,0.00017167,2]
[352520187,1739147461584,-151.0,0.00017167,2]
[352520188,1739147461594,-151.0,0.00017167,2]
[352520189,1739147461603,-255.85151,0.00017167,2]
[352520190,1739147461614,-151.0,0.00017167,2]
[352520191,1739147461625,-151.0,0.00017167,2]
[352520192,1739147461635,-151.0,0.00017167,2]
[352520193,1739147461651,-177.221212,0.00017167,2]
[352520194,1739147461661,-177.221212,0.00017167,2]
[352520195,1739147461671,-177.221212,0.00017167,2]
[352520196,1739147461680,-177.221212,0.00017167,2]
[352520197,1739147461691,-177.221212,0.00017167,2]
[352520198,1739147461700,-177.221212,0.00017167,2]
[352520199,1739147461710,-177.221212,0.00017167,2]
[352520200,1739147461719,-177.221212,0.00017167,2]
[352520201,1739147461731,-177.221212,0.00017167,2]
[352520202,1739147461742,-177.221212,0.00017167,2]
[352520203,1739147461752,-177.221212,0.00017167,2]
[352520204,1739147461761,-177.221212,0.00017167,2]
[352520205,1739147461771,-177.221212,0.00017167,2]
[352520206,1739147461780,-177.221212,0.00017167,2]
[352520207,1739147461790,-177.221212,0.00017167,2]
[352520208,1739147461799,-177.221212,0.00017167,2]
[352520209,1739147461809,-177.221212,0.00017167,2]
[352520210,1739147461819,-177.221212,0.00017167,2]
[352520211,1739147461828,-177.221212,0.00017167,2]
[352520212,1739147461837,-177.221212,0.00017167,2]
[352520213,1739147461846,-151.0,0.00017167,2]
[352520214,1739147461855,-500.0,0.00017173,2]
[352520215,1739147461866,-500.0,0.00017173,2]
[352520216,1739147461876,-500.0,0.00017173,2]
[352520217,1739147461886,-523.11382173,0.00017173,2]
[352520218,1739147461895,-500.0,0.00017173,2]
[352520219,1739147461905,-500.0,0.00017173,2]
[352520220,1739147461916,-500.0,0.00017173,2]
[352520221,1739147461926,-500.0,0.00017173,2]
[352520222,1739147461935,-500.0,0.00017173,2]
[352520223,1739147461945,-151.0,0.00017175,2]
[352520224,1739147461955,-151.0,0.00017175,2]
[352520225,1739147461965,-151.0,0.00017175,2]
[352520226,1739147461975,-151.0,0.00017175,2]
[352520227,1739147461985,-151.0,0.00017175,2]